bitfinex-derivatives/quotes_SOLF0:USTF0_20260210
["timestamp","ask_amount","ask_price","bid_price","bid_amount"]
[1770724778606,3.73158537,83.81,83.777,4.26001801]
[1770724779009,3.73158537,83.82,83.779,4.25858913]
[1770724780711,3.73158537,83.82,83.783,10.7518]
[1770724781004,3.73158537,83.82,83.784,4.2569756]
[1770724782909,3.73158537,83.82,83.787,4.2569756]
[1770724784108,3.73158537,83.8,83.765,4.25370394]
[1770724785715,3.73158537,83.8,83.766,10.7541]
[1770724785914,3.73158537,83.8,83.767,4.27845349]
[1770724786210,3.73158537,83.81,83.767,4.27845349]
[1770724787712,3.73158537,83.81,83.776,10.7527]
[1770724790421,10.99077304,83.858,83.782,4.31409044]
[1770724790607,3.73158537,83.83,83.782,4.31409044]
[1770724792821,3.73158537,83.83,83.796,10.7502]
[1770724794525,3.73158537,83.83,83.793,4.32007309]
[1770724794915,3.73158537,83.83,83.794,10.7504]
[1770724795619,3.73158537,83.83,83.795,4.24558524]
[1770724795921,10.7448,83.839,83.795,4.24558524]
[1770724796817,3.73158537,83.83,83.795,4.24558524]
[1770724797523,10.7448,83.839,83.795,4.24558524]
[1770724799926,10.746,83.829,83.795,4.24558524]
[1770724800224,3.73158537,83.83,83.795,4.24558524]
[1770724801628,3.73158537,83.84,83.795,4.24558524]
[1770724802426,3.73158537,83.84,83.755,22.26625106]
[1770724802427,3.73158537,83.85,83.806,4.27837551]
[1770724803220,3.73158537,83.86,83.818,4.29055324]
[1770724803521,14.73086815,83.904,83.8,3.73158537]
[1770724803522,10.99077304,83.91,83.821,4.29055324]
[1770724803720,3.73158537,83.88,83.821,4.29055324]
[1770724804120,3.73158537,83.89,83.834,4.29055324]
[1770724804423,3.73158537,83.89,83.841,4.29055324]
[1770724804824,3.73158537,83.87,83.841,4.29055324]
[1770724805027,3.73158537,83.88,83.841,4.29055324]
[1770724806431,3.73158537,83.89,83.841,4.29055324]
[1770724807233,10.7383,83.889,83.841,4.29055324]
[1770724807536,10.7372,83.898,83.844,4.21209352]
[1770724808032,3.73158537,83.89,83.844,4.21209352]
[1770724808332,10.7372,83.898,83.844,4.21209352]
[1770724808528,10.7372,83.898,83.763,29.67336768]
[1770724808529,10.7357,83.909,83.858,4.21209352]
[1770724809330,10.7357,83.909,83.863,4.13713863]
[1770724809527,10.7347,83.918,83.863,4.13713863]
[1770724810433,3.73158537,83.92,83.867,4.13713863]
[1770724810930,95.22,83.943,83.835,95.22]
[1770724810931,3.73158537,83.91,83.869,4.13713863]
[1770724811438,3.73158537,83.91,83.873,4.11826789]
[1770724811635,3.73158537,83.93,83.873,4.11826789]
[1770724811832,95.22,83.943,83.881,4.11826789]
[1770724812034,95.22,83.943,83.88,3.73158537]
[1770724812035,10.99077304,83.99,83.884,4.11826789]
[1770724812334,3.73158537,83.94,83.884,4.11826789]
[1770724812539,3.73158537,83.94,83.888,4.11826789]
[1770724813437,3.73158537,83.94,83.898,4.10299209]
[1770724814337,3.73158537,83.95,83.901,4.10299209]
[1770724814539,3.73158537,83.96,83.901,4.10299209]
[1770724815136,2.07326736,83.984,83.857,21.4848]
[1770724815137,3.73158537,83.93,83.891,4.09512718]
[1770724815536,3.73158537,83.92,83.891,4.09512718]
[1770724816342,3.73158537,83.92,83.892,10.7378]
[1770724817642,3.73158537,83.92,83.891,4.09512718]
[1770724818345,3.73158537,83.93,83.891,4.09512718]
[1770724818945,3.73158537,83.93,83.881,10.7392]
[1770724819149,3.73158537,83.92,83.881,10.7392]
[1770724819440,3.73158537,83.92,83.881,14.86986439]
[1770724819645,3.73158537,83.92,83.882,4.13066439]
[1770724820541,3.73158537,83.93,83.882,4.13066439]
[1770724821041,3.721378,83.92,83.882,4.13066439]
[1770724821844,3.721378,83.92,83.84,95.16]
[1770724821845,3.721378,83.93,83.884,4.10774338]
[1770724822833,14.454478,83.93,83.886,14.84654744]
[1770724823547,14.454478,83.93,83.887,4.02275413]
[1770724824944,3.721378,83.92,83.887,4.02275413]
[1770724825244,3.721378,83.92,83.86,3.721378]
[1770724825245,4.00191914,83.92,83.86,3.721378]
[1770724825452,3.721378,83.91,83.874,4.02275413]
[1770724826649,3.721378,83.91,83.875,10.74]
[1770724828351,3.721378,83.91,83.875,14.76275413]
[1770724830658,0.24322417,83.909,83.868,10.741]
[1770724831351,0.24322417,83.909,83.868,14.76375413]
[1770724831556,0.24322417,83.909,83.872,10.7404]
[1770724832153,3.721378,83.9,83.872,10.7404]
[1770724832360,3.721378,83.9,83.869,4.02275413]
[1770724833862,3.721378,83.9,83.871,10.7406]
[1770724834254,10.7343,83.921,83.879,4.02275413]
[1770724834555,3.721378,83.91,83.879,4.02275413]
[1770724835459,3.721378,83.92,83.887,14.76125413]
[1770724835657,3.721378,83.92,83.888,4.02275413]
[1770724835857,3.721378,83.93,83.888,4.02275413]
[1770724836156,3.721378,83.93,83.891,4.02275413]
[1770724836351,0.26199449,83.948,83.891,4.02275413]
[1770724836751,3.721378,83.96,83.918,4.02275413]
[1770724837864,3.721378,83.96,83.922,4.02275413]
[1770724838768,3.721378,83.94,83.891,4.02275413]
[1770724838969,3.721378,83.93,83.891,4.02275413]
[1770724839563,3.721378,83.94,83.891,4.02275413]
[1770724839764,3.721378,83.94,83.898,14.75985413]
[1770724839965,3.721378,83.94,83.899,4.02275413]
[1770724840657,3.721378,83.95,83.902,4.02275413]
[1770724841072,3.721378,83.96,83.915,4.02275413]
[1770724842865,3.721378,83.96,83.918,4.02275413]
[1770724843070,0.16822263,83.976,83.918,4.02275413]
[1770724843271,3.721378,83.97,83.918,4.02275413]
[1770724843472,3.721378,83.96,83.922,4.03677322]
[1770724844575,10.7278,83.971,83.922,4.03677322]
[1770724844772,3.721378,83.96,83.925,10.7336]
[1770724846877,0.1023141,83.949,83.907,4.03579023]
[1770724847366,3.721378,83.95,83.907,4.03579023]
[1770724848273,3.721378,83.96,83.922,4.04043529]
[1770724848474,3.721378,83.97,83.922,4.04043529]
[1770724848871,3.721378,83.97,83.927,4.04043529]
[1770724849579,3.721378,83.97,83.937,10.7321]
[1770724850778,3.81440199,83.98,83.937,10.7321]
[1770724851877,3.721378,83.97,83.937,10.7321]
[1770724852381,3.721378,83.97,83.937,14.78335498]
[1770724855175,0.09302399,83.98,83.895,14.63739374]
[1770724855176,3.81440199,83.98,83.94,4.04261414]
[1770724856384,3.721378,83.99,83.944,4.04261414]
[1770724856973,10.7257,83.988,83.947,14.77341414]
[1770724857177,3.721378,83.98,83.947,14.77341414]
[1770724857377,3.71587595,83.98,83.947,14.77341414]
[1770724857577,3.71587595,83.99,83.95,4.04794773]
[1770724858381,3.71587595,84.0,83.953,4.04794773]
[1770724859677,10.79293949,83.999,83.954,10.73]
[1770724859878,10.79293949,83.999,83.955,4.05166766]
[1770724860279,0.06873949,83.999,83.959,4.05166766]
[1770724860475,10.7232,84.007,83.959,4.05166766]
[1770724860782,3.71587595,84.01,83.96,3.71587595]
[1770724860976,3.71587595,84.01,83.961,4.05166766]
[1770724861182,3.71587595,84.01,83.977,10.727]
[1770724861384,3.71587595,84.02,83.977,14.7764457]
[1770724861582,3.71587595,84.02,83.978,4.0494457]
[1770724861883,0.07318342,84.023,83.978,4.0494457]
[1770724862572,0.07318342,84.023,83.981,4.0494457]
[1770724862777,3.71587595,84.02,83.981,4.0494457]
[1770724863575,3.71587595,84.03,83.981,4.0494457]
[1770724864085,3.71587595,84.03,83.97,3.71587595]
[1770724864086,3.71587595,84.03,83.985,4.03178976]
[1770724864582,3.71587595,84.0,83.969,4.03178976]
[1770724864781,3.71587595,84.0,83.95,3.71587595]
[1770724864782,3.71587595,83.99,83.941,4.03178976]
[1770724865783,3.71587595,83.99,83.952,10.7302]
[1770724865983,3.71587595,83.99,83.953,4.04958356]
[1770724867584,3.71587595,84.01,83.961,4.2016214]
[1770724868786,10.7219,84.018,83.972,4.2016214]
[1770724869778,10.7219,84.018,83.975,10.7272]
[1770724870086,3.71587595,84.01,83.975,10.7272]
[1770724873686,3.71587595,84.01,83.983,10.7262]
[1770724875588,3.71587595,83.99,83.96,4.33343587]
[1770724876190,3.71587595,84.0,83.96,4.33343587]
[1770724876787,3.71587595,84.0,83.961,15.06253587]
[1770724877189,3.71587595,84.01,83.962,4.33948954]
[1770724877391,3.71587595,84.0,83.964,15.06808954]
[1770724881195,3.71587595,84.0,83.968,10.7281]
[1770724882395,3.71587595,84.0,83.969,4.35284307]
[1770724882984,3.71390206,84.01,83.969,4.35284307]
[1770724883589,3.71390206,84.01,83.971,4.35670242]
[1770724883994,3.71390206,84.02,83.971,4.35670242]
[1770724884700,3.71390206,84.02,83.991,4.35670242]
[1770724885489,95.04,84.051,83.993,4.22987456]
[1770724885691,3.71390206,84.06,84.001,4.22987456]
[1770724886292,3.71390206,84.06,84.018,4.22987456]
[1770724886693,3.71390206,84.07,84.035,10.7196]
[1770724887196,3.71390206,84.08,84.036,3.98281619]
[1770724887702,3.71390206,84.07,84.036,3.98281619]
[1770724887905,3.71390206,84.07,84.039,10.7191]
[1770724888201,3.71390206,84.08,84.039,14.70191619]
[1770724888399,3.71390206,84.07,84.039,14.70191619]
[1770724888601,3.71390206,84.08,84.043,3.98281619]
[1770724889693,3.71390206,84.08,84.045,10.7183]
[1770724890405,3.71390206,84.06,84.02,3.97966881]
[1770724891896,3.71390206,84.08,84.02,7.69357087]
[1770724892096,3.71390206,84.08,84.031,4.05150137]
[1770724892497,3.71390206,84.08,84.043,10.7185]
[1770724892699,3.71390206,84.07,84.043,10.7185]
[1770724894607,3.71390206,84.07,84.033,10.7198]
[1770724895406,3.71390206,84.06,84.033,3.9516675]
[1770724896504,3.71390206,84.06,84.017,3.9516675]
[1770724897811,3.71390206,84.06,84.019,3.88228911]
[1770724898111,95.0,84.098,83.995,95.04]
[1770724898112,0.40887876,84.049,84.004,3.88228911]
[1770724898303,3.71390206,84.04,84.004,3.88228911]
[1770724899302,3.71390206,84.04,84.005,10.7234]
[1770724901812,3.71390206,84.07,84.021,3.76744826]
[1770724903705,3.71390206,84.07,84.022,3.76744826]
[1770724904211,7.6075855,84.06,84.022,3.76744826]
[1770724904514,3.71390206,84.05,84.013,10.7224]
[1770724904813,3.71390206,84.03,83.981,3.76744826]
[1770724905609,3.71390206,84.03,83.995,10.7247]
[1770724906124,3.71390206,84.02,83.987,10.7256]
[1770724906318,3.71390206,84.03,83.987,10.7256]
[1770724906814,3.71390206,84.03,83.987,14.49304826]
[1770724907315,3.71390206,84.03,83.94,21.4634]
[1770724907316,3.71390206,84.03,83.99,10.7253]
[1770724907707,3.71390206,84.03,83.99,14.49274826]
[1770724908023,3.71390206,84.03,83.992,10.725]
[1770724908319,3.71390206,84.05,83.993,3.76744826]
[1770724908923,3.89368344,84.051,83.993,3.76744826]
[1770724909413,94.98,84.059,83.993,3.76744826]
[1770724909414,3.89368344,84.049,83.993,3.76744826]
[1770724910724,3.98961329,84.043,84.002,10.7238]
[1770724912317,3.98961329,84.043,84.009,10.7229]
[1770724913928,7.9503286,84.05,84.009,10.7229]
[1770724914126,3.94940821,84.056,84.013,3.72095065]
[1770724916732,3.94940821,84.056,84.016,3.72095065]
[1770724917335,3.94940821,84.056,84.018,10.7217]
[1770724919034,3.94940821,84.056,84.016,3.72095065]
[1770724919628,3.98196726,84.069,84.016,3.72095065]
[1770724920136,3.98196726,84.082,84.024,3.72095065]
[1770724920540,3.98196726,84.096,84.024,3.72095065]
[1770724921041,10.712,84.095,84.044,3.72095065]
[1770724921543,95.0,84.105,84.053,3.72095065]
[1770724921544,14.75287829,84.105,84.053,3.72095065]
[1770724921736,4.04217829,84.099,84.053,3.72095065]
[1770724921938,4.04217829,84.099,84.007,3.72095065]
[1770724923337,4.04217829,84.099,84.0,7.9503286]
[1770724923338,14.73884506,84.072,84.028,10.7204]
[1770724923539,4.02394506,84.072,84.024,3.72095065]
[1770724924747,7.9503286,84.08,83.998,3.72095065]
[1770724924748,4.02394506,84.064,83.998,3.72095065]
[1770724924941,35.86,84.113,83.998,3.72095065]
[1770724924942,4.02394506,84.059,83.998,3.72095065]
[1770724925334,10.718,84.048,84.0,3.72095065]
[1770724925844,4.02394506,84.059,84.0,3.72095065]
[1770724926746,4.04789154,84.058,84.004,10.7235]
[1770724927347,4.04789154,84.058,84.004,14.44445065]
[1770724927644,4.04789154,84.058,84.005,3.72095065]
[1770724928648,4.04789154,84.054,84.005,3.72095065]
[1770724930046,4.04789154,84.054,84.007,10.7231]
[1770724930347,4.04789154,84.052,83.971,3.72095065]
[1770724930547,4.04789154,84.052,83.988,10.7256]
[1770724930748,4.04789154,84.039,83.988,10.7256]
[1770724931154,4.04789154,84.051,84.002,3.72095065]
[1770724931446,4.04789154,84.051,83.97,7.9503286]
[1770724931447,4.04789154,84.049,83.971,3.72095065]
[1770724931653,4.04789154,84.049,83.967,21.4565]
[1770724931654,4.04789154,84.049,84.001,10.7239]
[1770724932753,4.04789154,84.046,84.001,10.7239]
[1770724934252,4.04789154,84.039,83.991,10.7251]
[1770724935252,4.04789154,84.037,83.991,10.7251]
[1770724935452,4.04789154,84.052,84.01,10.7228]
[1770724935651,166.5396,84.142,84.007,3.72095065]
[1770724935652,4.04789154,84.078,84.007,3.72095065]
[1770724936262,4.04789154,84.068,83.994,3.72095065]
[1770724936442,4.04789154,84.049,83.994,3.72095065]
[1770724936643,4.04789154,84.049,83.994,14.44575065]
[1770724937750,4.04789154,84.047,83.994,14.44575065]
[1770724938348,4.04789154,84.045,83.994,3.72095065]
[1770724938551,4.04789154,84.043,83.994,3.72095065]
[1770724938945,4.04789154,84.041,83.994,3.72095065]
[1770724939358,4.04789154,84.04,83.994,3.72095065]
[1770724939857,3.99612426,84.039,83.994,3.72095065]
[1770724940763,3.93334069,84.035,83.994,3.72095065]
[1770724943453,10.7198,84.034,83.994,3.72095065]
[1770724945071,95.0,84.035,83.995,3.77153351]
[1770724945552,95.0,84.05,84.006,3.77153351]
[1770724946459,95.0,84.059,84.006,3.77153351]
[1770724946661,105.7167,84.059,84.011,3.77153351]
[1770724947356,7.95490277,84.07,84.011,3.77153351]
[1770724947357,10.7171,84.056,84.011,3.77153351]
[1770724947662,3.93334069,84.055,84.011,3.77153351]
[1770724948156,3.93334069,84.055,84.016,10.722]
[1770724948364,98.93334069,84.055,84.016,10.722]
[1770724948660,98.93334069,84.055,84.011,3.77153351]
[1770724948661,3.93334069,84.054,84.011,3.77153351]
[1770724948849,3.93334069,84.049,83.971,3.77153351]
[1770724949456,7.95490277,84.05,83.988,10.7256]
[1770724949457,3.93334069,84.036,83.988,10.7256]
[1770724949862,3.93334069,84.036,83.989,3.77153351]
[1770724950556,3.93334069,84.034,83.989,3.77153351]
[1770724951056,3.93334069,84.034,83.999,10.7242]
[1770724952861,2.07153955,84.055,83.943,95.0]
[1770724952862,3.93334069,84.069,84.013,3.77153351]
[1770724953065,21.4247,84.093,84.013,3.77153351]
[1770724953066,3.93334069,84.067,84.013,3.77153351]
[1770724953261,95.0,84.066,84.013,3.77153351]
[1770724954164,3.93334069,84.067,84.013,3.77153351]
[1770724954366,95.0,84.066,84.013,3.77153351]
[1770724954863,3.93334069,84.065,84.013,3.77153351]
[1770724955368,3.93334069,84.063,84.019,10.7216]
[1770724955765,3.93334069,84.063,84.013,3.77153351]
[1770724955962,3.93334069,84.061,84.013,3.77153351]
[1770724958360,95.0,84.06,84.013,3.77153351]
[1770724958762,10.7166,84.059,84.013,3.77153351]
[1770724959367,105.7166,84.059,84.013,3.77153351]
[1770724961174,95.0,84.059,84.016,3.77153351]
[1770724961564,3.93334069,84.075,84.016,3.77153351]
[1770724961766,95.0,84.074,84.032,3.77153351]
[1770724962471,10.7148,84.073,84.034,10.7197]
[1770724963872,10.7148,84.073,84.034,14.49123351]
[1770724964072,10.7148,84.073,84.035,3.77153351]
[1770724964267,3.93334069,84.064,84.006,14.75425478]
[1770724964471,3.93334069,84.064,84.01,3.77153351]
[1770724965568,3.93334069,84.064,84.019,10.7217]
[1770724965873,3.93334069,84.064,84.02,3.77153351]
[1770724966567,3.93334069,84.064,84.027,10.7206]
[1770724968874,3.93334069,84.064,84.029,10.7203]
[1770724971078,3.93334069,84.064,84.036,10.7194]
[1770724971273,7.95490277,84.08,84.036,10.7194]
[1770724971274,94.98,84.072,84.036,10.7194]
[1770724973073,99.00829121,84.076,84.036,10.7194]
[1770724973275,4.02829121,84.076,84.036,10.7194]
[1770724974280,4.02829121,84.076,84.037,3.98443834]
[1770724974584,4.02829121,84.074,84.028,10.7204]
[1770724974770,4.02829121,84.074,84.029,3.98443834]
[1770724974970,4.02829121,84.099,84.029,3.98443834]
[1770724975275,181.22043574,84.158,83.988,166.8434]
[1770724975276,4.02829121,84.108,84.052,3.98443834]
[1770724975475,4.02829121,84.106,84.052,3.98443834]
[1770724975669,4.02829121,84.099,84.01,3.98443834]
[1770724975968,4.02829121,84.097,84.01,3.98443834]
[1770724976172,4.02829121,84.097,84.043,14.70303834]
[1770724976580,4.02829121,84.097,84.044,3.98443834]
[1770724977181,4.02829121,84.097,84.049,10.7178]
[1770724978778,4.02829121,84.094,84.032,3.98443834]
[1770724979084,2.07035026,84.115,83.991,3.98443834]
[1770724979085,4.02829121,84.079,83.991,3.98443834]
[1770724979374,4.02829121,84.077,83.991,3.98443834]
[1770724979681,4.02829121,84.074,84.017,3.98443834]
[1770724980781,4.02829121,84.071,84.02,3.98443834]
[1770724980970,4.02829121,84.069,84.02,3.98443834]
[1770724981371,4.02829121,84.067,84.02,3.98443834]
[1770724982681,10.716,84.064,84.035,0.5]
[1770724982881,4.02829121,84.063,84.035,0.5]
[1770724983381,10.7163,84.062,84.035,0.5]
[1770724984386,10.7163,84.062,84.02,3.98443834]
[1770724985185,3.70958064,84.05,84.02,3.98443834]
[1770724986685,3.70958064,84.04,84.008,3.98443834]
[1770724987382,3.70958064,84.04,84.009,10.7229]
[1770724987686,3.70958064,84.04,84.008,3.98443834]
[1770724987985,3.70958064,84.03,83.981,3.98443834]
[1770724988185,3.70958064,84.03,84.006,10.7232]
[1770724988387,3.70958064,84.03,84.007,3.98443834]
[1770724988587,3.70958064,84.05,84.007,3.98443834]
[1770724989484,3.70958064,84.05,84.015,10.7222]
[1770724989681,3.70958064,84.05,84.016,3.98443834]
[1770724990286,3.70958064,84.04,84.008,10.7231]
[1770724990487,3.70958064,84.03,84.008,10.7231]
[1770724991891,3.70958064,84.03,84.004,3.98443834]
[1770724993185,3.70958064,84.03,84.006,10.7233]
[1770724994693,3.70958064,84.03,84.012,10.7225]
[1770724996692,3.70958064,84.03,84.005,10.7234]
[1770724997399,3.70958064,84.03,84.005,14.70783834]
[1770724998193,3.70958064,84.04,84.005,14.70783834]
[1770724999895,3.70958064,84.04,84.006,3.98443834]
[1770725001898,3.70958064,84.03,84.006,3.98443834]
[1770725002100,10.7182,84.046,84.009,10.7229]
[1770725002101,3.70958064,84.04,84.009,10.7229]
[1770725002996,3.70958064,84.04,84.012,3.91006507]
[1770725003200,3.70958064,84.05,84.012,3.91006507]
[1770725003790,3.71259992,84.06,84.0,3.70958064]
[1770725003791,3.70958064,84.06,84.026,3.91006507]
[1770725004311,3.70958064,84.06,84.035,10.7196]
[1770725004691,3.70958064,84.06,84.036,3.91006507]
[1770725004891,3.7085555,84.06,84.036,3.91006507]
[1770725005796,3.7085555,84.06,84.037,10.7193]
[1770725005993,94.98,84.075,84.038,3.91006507]
[1770725006197,3.7085555,84.07,84.038,3.91006507]
[1770725006394,3.7085555,84.06,84.038,3.91006507]
[1770725007306,3.7085555,84.07,84.038,3.91006507]
[1770725009501,3.71259992,84.096,84.038,3.91006507]
[1770725009705,3.71259992,84.111,84.06,3.91006507]
[1770725009910,3.7085555,84.1,84.06,3.91006507]
[1770725010412,3.7085555,84.11,84.065,3.91006507]
[1770725010605,94.98,84.116,84.065,3.91006507]
[1770725010911,3.71259992,84.115,84.065,3.91006507]
[1770725011105,94.98,84.116,84.065,3.91006507]
[1770725011708,94.98,84.116,84.07,3.91006507]
[1770725011901,3.7085555,84.12,84.07,3.91006507]
[1770725012105,3.7085555,84.12,84.071,3.91006507]
[1770725012310,3.7085555,84.12,84.074,3.91006507]
[1770725014119,11.04927343,84.173,84.04,14.75425478]
[1770725014120,3.71259992,84.144,84.096,3.91006507]
[1770725016508,3.7085555,84.14,84.096,3.91006507]
[1770725017510,3.71259992,84.139,84.096,3.91006507]
[1770725017906,3.71259992,84.139,84.097,10.7116]
[1770725018810,3.71259992,84.139,84.088,14.62286507]
[1770725018811,3.7085555,84.13,84.088,14.62286507]
[1770725019407,7.42115542,84.13,84.088,14.62286507]
[1770725020115,7.42115542,84.13,84.095,10.7119]
[1770725020311,3.71259992,84.13,84.095,10.7119]
[1770725020508,7.42115542,84.13,84.095,10.7119]
[1770725022820,3.71259992,84.13,84.096,3.91006507]
[1770725023016,3.7085555,84.14,84.101,10.7112]
[1770725023218,3.71259992,84.141,84.102,3.91006507]
[1770725023724,3.7085555,84.15,84.102,3.91006507]
[1770725024718,3.7085555,84.15,84.105,3.91006507]
[1770725025113,3.71259992,84.149,84.105,3.91006507]
[1770725025324,3.7085555,84.14,84.105,3.91006507]
[1770725026331,96.98878102,84.165,84.105,3.91006507]
[1770725026332,3.7085555,84.13,84.105,3.91006507]
[1770725026628,3.7085555,84.14,84.105,3.91006507]
[1770725027724,3.7085555,84.12,84.084,3.91006507]
[1770725028724,3.7085555,84.12,84.087,10.7129]
[1770725028920,3.71259992,84.119,84.084,3.91006507]
[1770725029429,3.7085555,84.11,84.077,10.7142]
[1770725030830,3.71259992,84.119,84.084,10.7134]
[1770725031927,3.71259992,84.119,84.084,14.60919914]
[1770725033832,3.7085555,84.12,84.085,3.89579914]
[1770725034633,3.7085555,84.1,84.041,3.89579914]
[1770725034835,4.05173425,84.099,84.041,3.89579914]
[1770725035728,4.05173425,84.099,84.074,10.7146]
[1770725036032,3.7085555,84.09,84.056,3.89579914]
[1770725037836,3.7085555,84.09,84.06,10.7164]
[1770725038439,4.05173425,84.117,84.06,3.89579914]
[1770725038631,3.7085555,84.1,84.06,3.89579914]
[1770725039033,3.7085555,84.1,84.078,10.7141]
[1770725039235,3.7085555,84.11,84.078,10.7141]
[1770725040838,3.7085555,84.12,84.084,14.60909914]
[1770725041043,4.05173425,84.119,84.084,10.7133]
[1770725041640,4.05173425,84.119,84.077,14.60999914]
[1770725041841,3.7085555,84.11,84.077,14.60999914]
[1770725042536,3.7085555,84.1,84.077,10.7142]
[1770725043040,4.05173425,84.109,84.077,10.7142]
[1770725043639,4.05173425,84.139,84.041,3.89579914]
[1770725043939,4.05173425,84.139,84.081,3.89579914]
[1770725044143,7.76028975,84.13,84.081,3.89579914]
[1770725044436,3.7085555,84.11,84.081,3.89579914]
[1770725044642,3.7085555,84.11,84.061,3.89579914]
[1770725044834,4.05173425,84.119,84.061,3.89579914]
[1770725045031,3.7085555,84.11,84.061,3.89579914]
[1770725045232,3.7085555,84.11,84.076,3.89579914]
[1770725046135,3.7085555,84.1,84.076,3.89579914]
[1770725046333,3.7085555,84.11,84.076,3.89579914]
[1770725046740,3.7085555,84.09,84.058,10.7166]
[1770725047737,7.76028975,84.09,84.048,3.89579914]
[1770725048040,3.7085555,84.08,84.048,3.89579914]
[1770725048245,4.05173425,84.089,84.048,3.89579914]
[1770725048443,3.7085555,84.08,84.048,3.89579914]
[1770725050040,3.7085555,84.07,84.036,10.7194]
[1770725050545,3.7085555,84.07,84.038,14.61489914]
[1770725050747,4.05173425,84.079,84.039,3.89579914]
[1770725051135,3.7085555,84.07,84.039,3.89579914]
[1770725051841,3.7085555,84.07,84.04,10.7189]
[1770725052546,4.05173425,84.079,84.04,10.7189]
[1770725052850,4.05173425,84.079,84.04,14.61469914]
[1770725053042,4.05173425,84.079,84.043,3.89579914]
[1770725055347,4.05173425,84.079,84.061,0.5]
[1770725055539,4.05173425,84.079,84.043,3.89579914]
[1770725055846,3.7085555,84.08,84.045,3.89579914]
[1770725056151,3.7085555,84.07,84.032,3.89579914]
[1770725056536,4.05173425,84.079,84.032,3.89579914]
[1770725057441,4.05173425,84.079,84.043,3.89579914]
[1770725064450,3.7085555,84.08,84.043,3.89579914]
[1770725064638,7.54347185,84.09,84.043,3.89579914]
[1770725064845,3.83491635,84.09,84.043,3.89579914]
[1770725065048,7.54145237,84.09,84.043,3.89579914]
[1770725065751,7.54145237,84.09,84.052,10.7175]
[1770725066252,7.54145237,84.09,84.053,4.00017027]
[1770725066746,3.70653602,84.08,84.053,4.00017027]
[1770725067652,3.83491635,84.069,84.028,4.00017027]
[1770725068642,3.83491635,84.066,84.029,10.7203]
[1770725069551,3.70653602,84.06,84.029,10.7203]
[1770725070244,3.70653602,84.06,84.016,4.00017027]
[1770725070245,10.7177,84.051,84.016,4.00017027]
[1770725070441,3.70653602,84.04,84.004,4.00017027]
[1770725070848,3.70653602,84.04,84.006,4.00017027]
[1770725071052,94.94,84.076,84.006,4.00017027]
[1770725071053,3.83491635,84.059,84.006,4.00017027]
[1770725071447,3.70653602,84.05,84.006,4.00017027]
[1770725071654,10.7179,84.049,84.007,14.72327027]
[1770725071847,3.83491635,84.048,84.007,14.72327027]
[1770725072049,3.70653602,84.04,84.007,4.00017027]
[1770725075454,3.83491635,84.059,84.007,4.00017027]
[1770725075748,3.70653602,84.04,84.007,4.00017027]
[1770725076148,3.83491635,84.039,83.994,4.00017027]
[1770725076549,3.70653602,84.03,83.994,4.00017027]
[1770725076951,3.83491635,84.029,83.985,10.726]
[1770725077456,3.83491635,84.029,83.992,10.7251]
[1770725079058,3.70653602,84.02,83.983,14.72637027]
[1770725079255,3.70653602,84.02,83.984,4.00017027]
[1770725079653,3.83491635,84.029,83.984,4.00017027]
[1770725080653,3.70653602,84.02,83.984,4.00017027]
[1770725080855,3.70653602,84.02,83.988,10.7256]
[1770725081452,3.70653602,84.02,83.988,14.72577027]
[1770725081757,3.83491635,84.029,83.988,14.72577027]
[1770725082260,3.70653602,84.04,83.991,4.00017027]
[1770725082848,3.70653602,84.04,84.006,10.7232]
[1770725083161,3.70653602,84.04,84.006,14.72337027]
[1770725083456,35.74,84.086,83.777,73.99372741]
[1770725083457,3.83491635,84.071,84.012,4.00017027]
[1770725083757,21.4211,84.107,84.012,4.00017027]
[1770725083758,3.83491635,84.069,84.012,4.00017027]
[1770725084258,3.83491635,84.066,84.02,10.7215]
[1770725084457,3.70653602,84.06,84.021,4.00017027]
[1770725084659,3.83491635,84.066,84.021,4.00017027]
[1770725085766,3.70653602,84.07,84.032,4.00017027]
[1770725086063,3.83491635,84.076,84.032,4.00017027]
[1770725086266,3.70653602,84.07,84.032,4.00017027]
[1770725086765,3.70653602,84.06,84.011,4.00017027]
[1770725087661,3.83491635,84.058,84.019,10.7216]
[1770725088364,3.70653602,84.05,84.019,10.7216]
[1770725088860,3.83491635,84.049,84.009,10.7229]
[1770725089067,7.54145237,84.04,83.999,4.00017027]
[1770725089267,18.26055237,84.04,83.999,4.00017027]
[1770725089459,18.26055237,84.04,83.956,21.4593]
[1770725089460,3.70653602,84.03,83.971,4.00017027]
[1770725089653,3.70653602,84.02,83.971,4.00017027]
[1770725090067,3.70653602,84.02,83.986,10.7258]
[1770725091663,10.7206,84.028,83.986,10.7258]
[1770725092060,3.83491635,84.029,83.989,3.78370284]
[1770725092267,10.7194,84.037,83.989,3.78370284]